bitfinex/quotes_SOLUSD_20250418
["timestamp","ask_amount","ask_price","bid_price","bid_amount"]
[1744994876326,7.513148,133.1,133.07,15.12301038]
[1744994877623,41.4190284,133.1,133.05,16.67371038]
[1744994878335,15.12301038,133.09,133.05,16.67371038]
[1744994879123,7.51427712,133.08,133.05,16.67371038]
[1744994880834,33.9058804,133.1,133.05,16.67371038]
[1744994881042,15.12301038,133.09,133.05,1.5507]
[1744994882933,7.51427712,133.08,133.05,1.5507]
[1744994885741,7.51427712,133.08,133.04,15.12301038]
[1744994886035,41.42298031,133.08,133.03,29.89301038]
[1744994887640,15.12301038,133.07,133.03,29.89301038]
[1744994887936,7.51540658,133.06,133.03,14.77]
[1744994890433,22.63841696,133.06,133.03,14.77]
[1744994892045,26.29404251,133.11,133.05,15.12301038]
[1744994892351,15.12301038,133.1,133.05,15.12301038]
[1744994892720,15.12301038,133.09,133.05,15.12301038]
[1744994892938,89.85696039,133.11,133.04,15.12301038]
[1744994892939,15.12301038,133.08,133.04,15.12301038]
[1744994893124,15.12301038,133.08,133.03,29.89301038]
[1744994894237,7.51484181,133.07,133.03,29.89301038]
[1744994902658,26.30194634,133.07,133.03,29.89301038]
[1744994902847,15.12301038,133.04,133.03,14.77]
[1744994903027,15.12301038,133.04,133.03,0.03]
[1744994904133,22.63954676,133.04,133.03,0.03]
[1744994906341,7.51653638,133.04,133.03,0.03]
[1744994909357,22.63954676,133.04,133.03,0.03]
[1744994912753,41.28919562,133.04,133.03,0.03]
[1744994918958,15.12301038,133.03,133.02,1e-08]
[1744994920958,22.64011178,133.03,133.02,1e-08]
[1744994921763,26.0,133.02,133.01,1e-08]
[1744994921955,41.12301038,133.02,133.01,1e-08]
[1744994922948,48.64067689,133.02,133.01,1e-08]
[1744994929262,67.71681046,133.02,133.01,1e-08]
[1744994930078,67.29032575,133.02,133.01,1e-08]
[1744994932676,22.64067689,133.02,133.01,1e-08]
[1744994933378,7.51766651,133.02,133.01,1e-08]
[1744994933580,7.5171014,133.03,133.01,1e-08]
[1744994933950,22.64011178,133.03,133.01,1e-08]
[1744994936174,33.77265924,133.02,133.01,1e-08]
[1744994936677,7.5171014,133.03,133.01,1e-08]
[1744994936858,22.64011178,133.03,133.01,1e-08]
[1744994940688,7.5171014,133.03,133.01,1e-08]
[1744994940981,22.64011178,133.03,133.01,1e-08]
[1744994943187,15.12301038,133.02,133.01,1e-08]
[1744994944595,41.29032575,133.02,133.01,1e-08]
[1744994946262,41.71681046,133.02,133.01,1e-08]
[1744994947581,44.933972,133.0,132.99,1e-08]
[1744994947784,120.69118547,133.0,132.98,1e-08]
[1744994947970,15.12301038,132.99,132.98,1e-08]
[1744994948165,60.09042748,132.99,132.96,0.03]
[1744994948482,59.77265924,132.97,132.96,0.03]
[1744994949282,67.29315258,132.97,132.96,0.03]
[1744994950695,7.52049334,132.97,132.96,0.03]
[1744994951194,7.5199278,132.98,132.96,0.03]
[1744994951884,7.5199278,132.98,132.96,15.15301038]
[1744994952089,7.51879699,133.0,132.97,16.67141038]
[1744994952389,7.51879699,133.0,132.99,15.12301038]
[1744994953377,7.51766651,133.02,132.98,15.12301038]
[1744994953795,22.64067689,133.02,132.98,15.12301038]
[1744994953999,22.64067689,133.02,132.97,1.5484]
[1744994954000,41.43484318,133.02,132.97,16.67141038]
[1744994955499,41.43484318,133.02,132.97,31.41141038]
[1744994956474,15.12301038,133.01,132.97,31.41141038]
[1744994956799,15.12301038,133.0,132.97,16.2884]
[1744994956971,33.77265924,133.01,132.97,16.2884]
[1744994957889,33.77265924,133.01,132.97,31.41141038]
[1744994958605,7.51879699,133.0,132.97,16.2884]
[1744994959199,7.51879699,133.0,132.97,31.41141038]
[1744994959903,41.43879985,133.0,132.97,14.74]
[1744994960082,15.12301038,132.99,132.97,14.74]
[1744994960403,15.12301038,132.98,132.97,14.74]
[1744994962201,22.64293818,132.98,132.97,14.74]
[1744994962398,22.64293818,132.98,132.96,0.03]
[1744994962583,7.5199278,132.98,132.96,0.03]
[1744994963104,22.64293818,132.98,132.96,0.03]
[1744994963875,15.12301038,132.97,132.96,0.03]
[1744994964082,33.77265924,132.97,132.96,0.03]
[1744994964281,41.29315258,132.97,132.96,0.03]
[1744994966711,7.52049334,132.97,132.96,0.03]
[1744994969994,15.12301038,132.97,132.96,0.03]
[1744994972311,22.64350372,132.97,132.96,0.03]
[1744994972612,7.52049334,132.97,132.96,0.03]
[1744994975619,7.52049334,132.97,132.96,15.15301038]
[1744994977315,52.56965172,133.0,132.96,15.15301038]
[1744994977612,7.51936235,132.99,132.96,15.15301038]
[1744994984220,7.51823171,133.01,132.98,15.12301038]
[1744994984408,7.51823171,133.01,132.99,15.12301038]
[1744994984918,7.51823171,133.01,132.98,15.12301038]
[1744994985115,26.31381098,133.01,132.97,15.12301038]
[1744994985315,41.43682136,133.01,132.96,16.79531038]
[1744994985514,15.12301038,132.99,132.96,0.03]
[1744994986427,7.5199278,132.98,132.96,0.03]
[1744994990327,18.79887694,132.99,132.96,0.03]
[1744994991833,26.31823929,132.99,132.96,0.03]
[1744994992135,41.44124967,132.99,132.96,0.03]
[1744994997051,33.77265924,132.97,132.96,0.03]
[1744994997232,41.29315258,132.97,132.96,0.03]
[1744994999055,7.52049334,132.97,132.96,0.03]
[1744994999353,26.31823929,132.99,132.96,0.03]
[1744994999556,41.44124967,132.99,132.96,0.03]
[1744994999958,26.31823929,132.99,132.96,0.03]
[1744995000554,26.31823929,132.99,132.96,15.15301038]
[1744995001556,26.31823929,132.99,132.96,0.03]
[1744995003757,26.31823929,132.99,132.96,15.15301038]
[1744995004352,0.063,133.03,132.98,15.12301038]
[1744995004661,7.51766651,133.02,133.01,15.12301038]
[1744995005335,7.51766651,133.02,133.0,15.12301038]
[1744995005653,7.5801014,133.03,133.0,15.12301038]
[1744995007040,7.5801014,133.03,132.99,29.86301038]
[1744995008842,7.5801014,133.03,133.01,15.12301038]
[1744995009351,7.5801014,133.03,133.0,15.12301038]
[1744995010660,7.5801014,133.03,132.99,14.74]
[1744995010661,0.063,133.03,132.99,14.74]
[1744995010951,0.063,133.03,132.99,29.86301038]
[1744995014329,7.51766651,133.02,132.99,29.86301038]
[1744995014533,7.51766651,133.02,132.99,14.74]
[1744995014835,26.3118328,133.02,132.99,14.74]
[1744995015045,41.43484318,133.02,132.99,14.74]
[1744995015248,15.12301038,133.01,132.99,14.74]
[1744995016353,7.51879699,133.0,132.99,14.74]
[1744995018461,7.51823171,133.01,132.99,14.74]
[1744995018659,7.51823171,133.01,132.99,29.86301038]
[1744995019874,7.51823171,133.01,133.0,15.12301038]
[1744995020667,0.063,133.03,133.0,15.12301038]
[1744995020853,0.063,133.03,133.02,15.12301038]
[1744995021867,0.063,133.03,133.01,15.12301038]
[1744995022861,0.063,133.03,132.99,16.342]
[1744995023073,0.063,133.03,133.0,15.12301038]
[1744995024671,0.063,133.03,133.02,15.12301038]
[1744995034465,15.18601038,133.03,132.99,82.167]
[1744995034672,15.18601038,133.03,132.99,80.565]
[1744995035085,0.063,133.03,132.99,95.68801038]
[1744995035381,0.063,133.03,133.0,15.12301038]
[1744995035854,26.37285491,133.03,133.0,15.12301038]
[1744995036394,26.37285491,133.03,132.99,80.565]
[1744995036395,26.37285491,133.03,133.01,15.12301038]
[1744995038396,18.85575351,133.03,133.01,15.12301038]
[1744995041469,0.063,133.03,133.01,15.12301038]
[1744995042290,33.83565924,133.03,132.98,14.72]
[1744995042669,33.83565924,133.03,132.98,29.84301038]
[1744995043272,15.12301038,133.02,132.98,29.84301038]
[1744995043473,7.51823171,133.01,132.98,29.84301038]
[1744995045791,26.31199578,133.02,132.98,29.84301038]
[1744995046294,26.31199578,133.02,132.99,15.12301038]
[1744995046589,7.51766651,133.02,133.01,15.12301038]
[1744995047786,0.063,133.03,133.01,15.12301038]
[1744995048884,0.063,133.03,132.98,14.72]
[1744995049077,0.063,133.03,133.0,15.12301038]
[1744995051495,0.063,133.03,133.01,15.12301038]
[1744995053895,0.063,133.03,133.02,15.12301038]
[1744995055399,0.063,133.03,133.0,15.12301038]
[1744995055580,0.063,133.03,132.99,15.12301038]
[1744995057410,7.5801014,133.03,133.0,15.12301038]
[1744995059804,7.5801014,133.03,132.99,29.84301038]
[1744995060008,7.5801014,133.03,133.0,15.12301038]
[1744995061095,7.5801014,133.03,132.99,14.72]
[1744995061297,7.5801014,133.03,133.0,15.12301038]
[1744995061797,7.5801014,133.03,132.99,14.72]
[1744995061997,0.063,133.03,133.0,15.12301038]
[1744995077626,0.063,133.03,133.01,15.12301038]
[1744995077921,0.063,133.03,133.02,15.12301038]
[1744995082225,0.063,133.03,133.02,22.64067689]
[1744995082726,0.063,133.03,133.02,48.64067689]
[1744995083624,0.063,133.03,133.02,48.92500003]
[1744995086803,0.063,133.03,133.02,129.49000003]
[1744995103647,0.063,133.03,133.02,129.6321616]
[1744995104345,0.063,133.03,133.02,135.523006]
[1744995104745,0.063,133.03,133.02,129.6321616]
[1744995106827,0.063,133.03,133.02,144.3521616]
[1744995108451,0.063,133.03,133.02,150.51569683]
[1744995109154,0.063,133.03,133.02,144.3521616]
[1744995111249,0.063,133.03,133.02,137.00181046]
[1744995111453,0.063,133.06,133.05,26.28432314]
[1744995111631,0.063,133.06,133.05,121.97233352]
[1744995112558,0.063,133.06,133.05,129.48830495]
[1744995121952,0.063,133.06,133.05,119.48830495]
[1744995128062,0.063,133.06,133.05,134.20830495]
[1744995129870,0.063,133.06,133.05,119.08529457]
[1744995130054,0.063,133.06,133.05,95.285]
[1744995131873,7.57840658,133.06,133.05,95.285]
[1744995132178,41.48993341,133.06,133.01,95.285]
[1744995132379,41.48993341,133.06,133.01,29.84301038]
[1744995134752,7.57840658,133.06,133.03,15.12301038]
[1744995135081,7.57840658,133.06,133.05,15.12301038]
[1744995135082,0.063,133.06,133.05,15.12301038]
[1744995135979,0.063,133.06,133.05,103.63046652]
[1744995137669,0.063,133.06,133.05,118.35046652]
[1744995138060,0.063,133.06,133.05,37.78546652]
[1744995138682,0.063,133.06,133.05,82.43511538]
[1744995138887,0.063,133.08,133.07,26.28432314]
[1744995139182,0.063,133.08,133.07,101.89937504]
[1744995139381,0.063,133.08,133.07,41.40733352]
[1744995139573,0.063,133.08,133.07,41.12301038]
[1744995142774,0.063,133.08,133.07,122.12301038]
[1744995153089,0.063,133.08,133.07,110.82301038]
[1744995166200,0.063,133.08,133.07,14.7]
[1744995166400,15.18601038,133.08,133.07,14.7]
[1744995167102,15.18601038,133.08,133.03,29.82301038]
[1744995167485,15.18601038,133.08,133.04,15.12301038]
[1744995167687,7.51484181,133.07,133.04,15.12301038]
[1744995167883,7.51484181,133.07,133.03,29.82301038]
[1744995168394,22.63785219,133.07,133.03,29.82301038]
[1744995168809,41.42495672,133.07,133.03,29.82301038]
[1744995169509,26.30194634,133.07,133.03,29.82301038]
[1744995170804,26.30194634,133.07,133.04,15.12301038]
[1744995173807,7.51484181,133.07,133.04,15.12301038]
[1744995176708,7.57727712,133.08,133.04,15.12301038]
[1744995190522,22.7002875,133.08,133.04,15.12301038]
[1744995193821,7.57727712,133.08,133.05,15.12301038]
[1744995195723,0.063,133.08,133.07,15.12301038]
[1744995196209,0.063,133.08,133.06,15.12301038]
[1744995198621,0.063,133.08,133.07,15.12301038]
[1744995199121,15.18601038,133.08,133.03,95.7]
[1744995199313,15.12301038,133.05,133.03,14.7]
[1744995200318,15.12301038,133.06,133.03,14.7]
[1744995200713,7.51597143,133.05,133.03,14.7]
[1744995203801,15.12301038,133.04,133.0,107.03]
[1744995204008,15.12301038,133.03,133.0,26.03]
[1744995204335,15.12301038,133.04,133.0,41.15301038]
[1744995204523,15.12301038,133.04,133.0,26.03]
[1744995205138,7.5171014,133.03,133.0,26.03]
[1744995209034,7.5171014,133.03,133.0,0.03]
[1744995210111,26.30590002,133.05,133.0,0.03]
[1744995210428,15.12301038,133.04,133.0,0.03]
[1744995211436,26.30590002,133.05,133.0,0.03]
[1744995211746,15.12301038,133.04,133.0,0.03]
[1744995213430,7.5171014,133.03,133.0,0.03]
[1744995213644,22.64011178,133.03,133.0,0.03]
[1744995218135,15.12301038,133.03,133.0,0.03]
[1744995219340,15.12301038,133.04,133.0,0.03]
[1744995222739,7.5171014,133.03,133.0,0.03]
[1744995222942,22.64011178,133.03,133.0,0.03]
[1744995223344,41.43286529,133.03,133.0,0.03]
[1744995228023,7.5171014,133.03,133.0,15.15301038]
[1744995228221,7.5171014,133.03,133.02,15.12301038]
[1744995229126,7.51597143,133.05,133.02,15.12301038]
[1744995229315,7.51597143,133.05,133.01,15.12301038]
[1744995230430,22.63898181,133.05,133.01,15.12301038]
[1744995236739,7.51597143,133.05,133.01,15.12301038]
[1744995237233,27.6648,133.07,133.04,15.12301038]
[1744995237234,7.51484181,133.07,133.04,15.12301038]
[1744995237442,0.063,133.08,133.06,15.12301038]
[1744995237637,0.063,133.08,133.07,15.12301038]
[1744995251163,0.063,133.08,133.07,97.69871038]
[1744995251359,0.063,133.11,133.1,26.0]
[1744995251662,0.063,133.11,133.1,55.82301038]
[1744995252445,0.063,133.11,133.1,63.33615838]
[1744995252646,0.063,133.11,133.1,55.82301038]
[1744995253172,0.063,133.11,133.1,63.33615838]
[1744995256894,0.063,133.11,133.1,144.33615838]
[1744995257579,0.063,133.11,133.1,136.82301038]
[1744995260789,0.063,133.11,133.1,14.7]
[1744995262379,7.57558357,133.11,133.1,14.7]
[1744995263883,41.48005289,133.11,133.06,40.7]
[1744995264065,41.48005289,133.11,133.06,55.82301038]
[1744995264685,41.48005289,133.11,133.06,40.7]
[1744995264885,41.48005289,133.11,133.06,55.82301038]
[1744995269489,26.35704251,133.11,133.07,15.12301038]
[1744995269670,26.35704251,133.11,133.08,15.12301038]
[1744995271088,41.48005289,133.11,133.07,15.12301038]
[1744995271922,26.35704251,133.11,133.07,15.12301038]
[1744995273789,41.48005289,133.11,133.07,15.12301038]
[1744995275391,41.48005289,133.11,133.06,55.82301038]
[1744995275597,15.12301038,133.1,133.06,40.7]
[1744995276101,7.51371252,133.09,133.06,40.7]
[1744995279598,7.513148,133.1,133.07,15.12301038]
[1744995285596,7.513148,133.1,133.06,40.7]
[1744995285807,22.63615838,133.1,133.06,55.82301038]
[1744995286102,41.4190284,133.1,133.06,55.82301038]
[1744995286305,41.4190284,133.1,133.06,40.7]
[1744995286811,41.4190284,133.1,133.06,14.7]
[1744995287707,7.51427712,133.08,133.06,14.7]
[1744995289009,7.51371252,133.09,133.06,29.82301038]
[1744995289403,7.51371252,133.09,133.07,15.12301038]
[1744995290109,7.51343397,133.1,133.07,15.12301038]
[1744995290507,7.51343397,133.1,133.08,15.12301038]
[1744995291297,7.57558357,133.11,133.08,15.12301038]
[1744995292005,7.57558357,133.11,133.07,15.12301038]
[1744995296916,7.57558357,133.11,133.08,14.68]
[1744995296917,15.18601038,133.11,133.08,14.68]
[1744995299001,7.513148,133.1,133.08,14.68]
[1744995304208,7.513148,133.1,133.08,29.80301038]
[1744995306429,7.57558357,133.11,133.08,29.80301038]
[1744995310530,0.063,133.11,133.08,29.80301038]
[1744995311340,0.063,133.11,133.1,15.12301038]
[1744995313134,0.063,133.11,133.1,96.12301038]
[1744995313311,0.063,133.11,133.1,103.63615838]
[1744995320344,0.063,133.11,133.1,48.92048152]
[1744995320534,0.063,133.13,133.12,26.28432314]
[1744995320716,0.063,133.13,133.12,122.40733352]
[1744995322136,0.063,133.13,133.12,129.91935275]
[1744995324448,0.063,133.14,133.13,0.14216157]
[1744995324637,0.063,133.14,133.13,90.43721347]
[1744995326143,0.063,133.14,133.13,97.94866843]
[1744995328243,0.063,133.14,133.13,178.94866843]
[1744995328658,0.063,133.14,133.13,118.45662691]
[1744995330642,0.063,133.14,133.13,111.08733352]
[1744995330850,0.063,133.14,133.13,110.80301038]
[1744995337167,0.063,133.14,133.13,15.12301038]
[1744995337355,0.063,133.14,133.13,14.68]
[1744995341067,0.063,133.14,133.13,29.80301038]
[1744995347378,0.063,133.14,133.13,14.68]
[1744995349258,0.063,133.14,133.13,29.80301038]
[1744995351083,15.18601038,133.14,133.08,81.0]
[1744995351257,15.12301038,133.13,133.1,14.68]
[1744995352398,15.12301038,133.12,133.1,14.68]
[1744995354499,7.51258357,133.11,133.1,14.68]
[1744995355883,7.51201923,133.12,133.1,14.68]
[1744995356091,7.51201923,133.12,133.1,29.80301038]
[1744995357585,7.511744,133.13,133.11,15.12301038]
[1744995357884,0.063,133.14,133.12,15.12301038]
[1744995358071,0.063,133.14,133.13,15.12301038]
[1744995364901,0.063,133.14,133.13,29.80301038]
[1744995365680,0.063,133.14,133.13,14.68]
[1744995369011,0.063,133.14,133.11,95.68]
[1744995369911,33.83565924,133.14,133.11,14.68]
[1744995370117,15.12301038,133.12,133.11,14.68]
[1744995371305,22.63502961,133.12,133.11,14.68]
[1744995374402,7.51201923,133.12,133.11,14.68]
[1744995375295,7.51145496,133.13,133.11,14.68]
[1744995377595,22.63446534,133.13,133.11,14.68]
[1744995377924,7.51145496,133.13,133.11,14.68]
[1744995380418,22.63446534,133.13,133.11,14.68]
[1744995382220,15.12301038,133.12,133.11,14.68]
[1744995383724,22.63446534,133.13,133.11,14.68]
[1744995391329,41.41310276,133.13,133.09,14.68]
[1744995391630,15.12301038,133.12,133.09,14.68]
[1744995392214,15.12301038,133.1,133.07,0.03]
[1744995392426,15.12301038,133.08,133.07,0.03]
[1744995392637,15.12301038,133.09,133.07,0.03]
[1744995393312,15.12301038,133.1,133.07,0.03]
[1744995393515,7.51371252,133.09,133.07,0.03]
[1744995393717,22.6367229,133.09,133.07,0.03]
[1744995394329,18.64964886,133.08,133.07,0.03]
[1744995394520,33.77265924,133.08,133.07,0.03]
[1744995394715,18.64964886,133.08,133.07,0.03]
[1744995395536,26.16392598,133.08,133.07,0.03]
[1744995399831,41.28693636,133.08,133.07,1e-08]
[1744995400039,67.71342107,133.08,133.07,1e-08]
[1744995400922,73.72912107,133.08,133.07,1e-08]
[1744995402152,45.07613357,133.06,133.05,1e-08]
[1744995402443,61.74434395,133.06,133.05,1e-08]
[1744995405250,69.25975053,133.06,133.05,1e-08]
[1744995408151,52.59154015,133.06,133.05,1e-08]
[1744995408349,67.28806582,133.06,133.05,1e-08]
[1744995408649,26.16505544,133.06,133.05,1e-08]
[1744995408858,7.51540658,133.06,133.05,1e-08]
[1744995420558,7.51439231,133.08,133.05,15.12301039]
[1744995420749,7.51439231,133.08,133.07,15.12301038]
[1744995421066,26.29629615,133.1,133.06,15.12301038]
[1744995422368,41.41930653,133.1,133.06,15.12301038]
[1744995428779,26.29629615,133.1,133.06,15.12301038]
[1744995430881,26.29996993,133.08,133.05,15.12301039]
[1744995431048,41.42298031,133.08,133.05,1e-08]
[1744995435882,26.29996993,133.08,133.05,15.12301039]
[1744995436058,26.29996993,133.08,133.06,15.12301038]
[1744995438377,7.51427712,133.08,133.06,15.12301038]
[1744995438555,7.51427712,133.08,133.07,15.12301038]
[1744995438754,7.51427712,133.08,133.06,15.12301038]
[1744995439480,26.29616326,133.1,133.06,15.12301038]
[1744995440787,26.29616326,133.1,133.07,15.12301038]
[1744995442279,26.29616326,133.1,133.08,15.12301038]
[1744995443382,26.29616326,133.1,133.07,15.12301038]
[1744995446783,7.51427712,133.08,133.05,1e-08]
[1744995447386,7.51427712,133.08,133.05,15.12301039]
[1744995447681,7.51427712,133.08,133.06,15.12301038]
[1744995447876,7.51427712,133.08,133.07,15.12301038]
[1744995449490,26.29451552,133.11,133.07,15.12301038]
[1744995451395,41.4175259,133.11,133.07,15.12301038]
[1744995453092,15.12301038,133.1,133.06,29.80301038]
[1744995454486,7.51371252,133.09,133.06,29.80301038]
[1744995455482,26.29799383,133.09,133.06,14.68]
[1744995459497,41.42100421,133.09,133.06,14.68]
[1744995459673,18.64964886,133.08,133.06,14.68]
[1744995459872,33.77265924,133.08,133.06,14.68]
[1744995460067,18.64964886,133.06,133.05,1e-08]
[1744995460399,15.12301038,133.06,133.05,1e-08]
[1744995461775,26.16505544,133.06,133.05,1e-08]
[1744995461979,7.51540658,133.06,133.05,1e-08]
[1744995463698,7.51484181,133.07,133.05,1e-08]
[1744995465393,22.63785219,133.07,133.05,1e-08]
[1744995471778,7.51484181,133.07,133.05,1e-08]
[1744995473687,7.51484181,133.07,133.05,15.12301039]
[1744995474995,7.51427712,133.08,133.05,15.12301039]
[1744995476298,7.51427712,133.08,133.05,1e-08]
[1744995477405,7.51427712,133.08,133.05,15.12301039]
[1744995477702,26.29799383,133.09,133.06,15.12301038]
[1744995479416,26.29799383,133.09,133.05,15.12301039]
[1744995484520,26.29799383,133.09,133.06,15.12301038]
[1744995484715,7.51371252,133.09,133.08,15.12301038]
[1744995484922,7.51371252,133.09,133.06,15.12301038]
[1744995485921,26.29601802,133.1,133.06,15.12301038]
[1744995486914,26.29601802,133.1,133.07,15.12301038]
[1744995488218,7.513148,133.1,133.08,15.12301038]
[1744995488421,7.513148,133.1,133.05,1e-08]
[1744995488422,7.513148,133.1,133.09,15.12301038]
[1744995489507,26.16110382,133.13,133.09,15.12301038]
[1744995490521,44.93974124,133.13,133.09,15.12301038]
[1744995493522,44.93974124,133.13,133.1,15.12301038]
[1744995494722,15.18601038,133.14,133.12,15.12301038]
[1744995494723,7.57428729,133.14,133.12,15.12301038]
[1744995494934,7.57428729,133.14,133.13,15.12301038]
[1744995495230,0.063,133.14,133.13,15.12301038]
[1744995495630,7.57389079,133.14,133.13,15.12301038]
[1744995496911,0.063,133.14,133.13,15.12301038]
[1744995502422,0.063,133.14,133.13,29.78301038]
[1744995514377,7.51145496,133.13,133.08,15.12301038]
[1744995514575,7.51145496,133.13,133.07,95.66]
[1744995514873,15.12301038,133.11,133.07,110.78301038]
[1744995515077,15.12301038,133.12,133.08,15.12301038]
[1744995515273,41.41310276,133.13,133.08,15.12301038]
[1744995515980,41.41310276,133.13,133.09,15.12301038]
[1744995516185,15.12301038,133.12,133.08,15.12301038]
[1744995516358,7.51258357,133.11,133.08,15.12301038]
[1744995518579,26.29404251,133.11,133.07,29.78301038]
[1744995518986,26.29404251,133.11,133.08,15.12301038]
[1744995519789,18.78145894,133.11,133.08,15.12301038]
[1744995520786,18.78145894,133.11,133.09,15.12301038]
[1744995521573,7.51201923,133.12,133.1,15.12301038]
[1744995522787,26.29044507,133.13,133.1,15.12301038]
[1744995523788,26.29044507,133.13,133.11,15.12301038]
[1744995524583,26.29044507,133.13,133.1,15.12301038]
[1744995524890,18.77899011,133.13,133.1,15.12301038]
[1744995526186,26.29044507,133.13,133.1,15.12301038]
[1744995527793,18.77899011,133.13,133.1,15.12301038]
[1744995532096,18.77899011,133.13,133.11,15.12301038]
[1744995534596,7.57389079,133.14,133.11,15.12301038]
[1744995534782,7.57389079,133.14,133.13,15.12301038]
[1744995535374,7.57389079,133.14,133.12,15.12301038]
[1744995536498,0.063,133.14,133.12,15.12301038]
[1744995541201,0.063,133.14,133.13,15.12301038]
[1744995541506,0.063,133.14,133.13,29.78301038]
[1744995545591,0.063,133.14,133.13,179.07083]
[1744995545785,0.063,133.14,133.13,118.57878848]
[1744995552601,0.063,133.14,133.13,179.07083]
[1744995558347,0.063,133.14,133.13,118.57878848]
[1744995558646,0.063,133.14,133.13,118.72095005]
[1744995558817,0.063,133.14,133.13,179.21299157]
[1744995561345,0.063,133.15,133.14,7.79521393]
[1744995561527,0.063,133.15,133.14,83.41026583]
[1744995561847,0.063,133.15,133.14,164.41026583]
[1744995563748,0.063,133.15,133.14,190.5524274]
[1744995563956,0.063,133.17,133.16,26.0]
[1744995564251,0.063,133.17,133.16,122.12301038]
[1744995566548,0.063,133.17,133.16,129.63277307]
[1744995568353,0.063,133.17,133.16,144.27277307]
[1744995569456,0.063,133.17,133.16,136.76301038]
[1744995573159,0.063,133.17,133.16,144.27277307]
[1744995574865,0.063,133.17,133.16,136.76301038]
[1744995576362,0.063,133.17,133.16,144.55709621]
[1744995577357,0.063,133.17,133.16,118.55709621]
[1744995579468,0.063,133.17,133.16,110.76301038]
[1744995582945,0.063,133.17,133.16,95.64]
[1744995583447,0.063,133.17,133.16,110.76301038]
[1744995585281,0.063,133.17,133.16,29.76301038]
[1744995586963,0.063,133.17,133.16,37.27277307]
[1744995591177,0.063,133.17,133.16,118.27277307]
[1744995592379,0.063,133.17,133.16,110.76301038]
[1744995592682,0.063,133.17,133.16,118.27277307]
[1744995599577,0.063,133.17,133.16,118.55709621]
[1744995599783,0.063,133.27,133.19,45.07613357]
[1744995599985,7.56696116,133.27,133.21,15.12301038]
[1744995600177,7.56696116,133.27,133.22,14.66]
[1744995600685,7.56696116,133.27,133.22,29.78301038]
[1744995601086,7.56696116,133.27,133.22,37.2893908]
[1744995601286,0.063,133.27,133.22,118.57371394]
[1744995604394,0.063,133.27,133.22,110.78301038]
[1744995604577,0.063,133.27,133.22,118.2893908]
[1744995605692,15.12301038,133.25,133.19,81.0]
[1744995605987,15.12301038,133.22,133.2,14.66]
[1744995607771,7.50694392,133.21,133.2,14.66]
[1744995611398,60.04696296,133.21,133.16,29.78301038]
[1744995611692,15.12301038,133.2,133.16,29.78301038]
[1744995611897,15.12301038,133.2,133.16,14.66]
[1744995612276,7.50807117,133.19,133.16,14.66]
[1744995613296,22.63108155,133.19,133.16,14.66]
[1744995615094,7.50807117,133.19,133.16,14.66]
[1744995615483,7.50807117,133.19,133.16,29.78301038]
[1744995616999,7.50807117,133.19,133.16,14.66]
[1744995617203,7.50807117,133.19,133.16,29.78301038]
[1744995620092,7.50807117,133.19,133.17,15.12301038]
[1744995621106,26.27747955,133.2,133.16,14.66]
[1744995621305,26.27747955,133.2,133.17,15.12301038]
[1744995621609,26.27747955,133.2,133.16,14.66]
[1744995621803,26.27747955,133.2,133.17,15.12301038]
[1744995622997,7.5075075,133.2,133.17,15.12301038]
[1744995623202,7.50638042,133.22,133.19,15.12301038]
[1744995623404,7.50638042,133.22,133.2,15.12301038]
[1744995627629,1.6135,133.23,133.21,15.12301038]
[1744995627630,7.56904376,133.23,133.21,15.12301038]
[1744995628105,7.56904376,133.23,133.21,29.80301038]
[1744995628509,7.56904376,133.23,133.22,15.12301038]
[1744995629532,0.063,133.23,133.22,15.12301038]
[1744995631132,0.063,133.23,133.21,29.80301038]
[1744995632837,0.063,133.23,133.21,14.68]
[1744995634438,7.568817,133.23,133.21,14.68]
[1744995638345,7.568817,133.23,133.19,29.80301038]
[1744995639445,7.568817,133.23,133.2,15.12301038]
[1744995642452,0.063,133.23,133.2,15.12301038]
[1744995648458,0.063,133.23,133.19,29.80301038]
[1744995648643,15.18601038,133.23,133.19,29.80301038]